Cogmind - Beta 13 @@@ ROGUE MODE // 2024.03.15 @ 19:41:17 Player: SilentMoose Result: Destroyed by S-10 Pest with Light Assault Rifle Performance ------------- Evolutions (1) 500 Regions Visited (3) 600 Robots Destroyed (2) 10 Value Destroyed (81) 81 Prototype IDs (0) 0 Alien Tech Used (0) 0 Bonus (0) 0 TOTAL SCORE: 1191 Bonus ------- None Cogmind --------- Core Integrity 0/400 Matter 225/300 Energy 100/100 System Corruption 0% Temperature Cool (0) Movement Core (700) Ox13 Location -9/Materials Parts ------- > --- POWER (2) -------- (None) > --- PROPULSION (3) --- (None) > --- UTILITY (2) ------ High-capacity Storage Unit Power Shielding > --- WEAPON (2) ------- (None) > --- INVENTORY (20) --- High-powered Tractor Beam High-powered Tractor Beam High-powered Tractor Beam Trap Extractor (0/4) Trap Extractor (0/4) Peak State ------------ > --- POWER ------------ Ion Engine Ion Engine > --- PROPULSION ------- Light Treads Aluminum Leg Aluminum Leg > --- UTILITY ---------- High-capacity Storage Unit Power Shielding > --- WEAPON ----------- Mining Laser Mining Laser > --- INVENTORY -------- Light Treads High-powered Tractor Beam High-powered Tractor Beam High-powered Tractor Beam Trap Extractor Trap Extractor [Rating: 10] Favorites ----------- Power Ion Engine Engine Ion Engine Propulsion Aluminum Leg Treads Light Treads Leg Aluminum Leg Wheel Wheel Utility Power Shielding Storage High-capacity Storage Unit Protection Power Shielding Weapon Assault Rifle Energy Gun EM Pulse Gun Ballistic Gun Assault Rifle Special Weapon Mining Laser Build | -11 -10 -10 -9 ------- Run | Yrd Mat Min Mat Slots Evolved 2 | . . . 2 Power 1 | . . . 1 Propulsion 1 | . . . 1 Utility . | . . . . Weapon . | . . . . Parts Attached 21 | 6 5 5 5 Power 3 | 1 . 1 1 Engine 3 | 1 . 1 1 Core . | . . . . Reactor . | . . . . Propulsion 9 | 2 2 3 2 Treads 3 | . . 1 2 Leg 4 | . 2 2 . Wheel 2 | 2 . . . Hover . | . . . . Flight . | . . . . Utility 3 | 1 2 . . Device . | . . . . Storage 2 | 1 1 . . Processor . | . . . . Hackware . | . . . . Protection 1 | . 1 . . Artifact . | . . . . Weapon 6 | 2 1 1 2 Energy Gun 2 | 1 1 . . Energy Cannon . | . . . . Ballistic Gun 1 | 1 . . . Ballistic Cannon . | . . . . Launcher . | . . . . Special Weapon 3 | . . 1 2 Impact Weapon . | . . . . Slashing Weapon . | . . . . Piercing Weapon . | . . . . Special Melee Weapon . | . . . . Unidentified Prototypes . | . . . . Parts Lost 15 | . 3 4 8 Power 2 | . . . 2 Propulsion 7 | . 2 1 4 Utility . | . . . . Weapon 6 | . 1 3 2 Highest Loss Streak 8 | . 2 4 8 To Critical Strikes . | . . . . Average Slot Usage (%) 87 | . 89 80 86 Engine 15 | . 14 14 17 Treads 4 | . . 1 12 Leg 16 | . 14 26 17 Wheel 5 | . 10 . . Storage 12 | . 13 14 11 Protection 11 | . 10 14 11 Energy Gun 5 | . 10 1 . Ballistic Gun 7 | . 14 3 . Special Weapon 6 | . . 4 17 Naked Turns . | . . . . Heaviest Build 53 | 14 50 50 53 Greatest Support 40 | 20 20 20 40 Greatest Overweight (x) 13 | 3 4 4 13 Average Overweight (x) 1 | . 1 2 2 Largest Inventory Capacity 20 | 8 20 20 20 Average Capacity 17 | 7 16 20 20 Most Carried 8 | 8 7 7 6 Average Carried 4 | 4 5 5 3 Final Capacity 20 | 8 20 20 20 Final Carried 7 | 6 7 5 5 Class Distribution -------------------- 100% | Mutant Dominant Class ---------------- Mutant | -10/Materials Mutant | -10/Mines Mutant | -9/Materials Resources | -11 -10 -10 -9 ----------- Run | Yrd Mat Min Mat Matter Collected 273 | 204 50 19 . Remotely . | . . . . Salvage Created 97 | . 97 . . Parts 3 | . 3 . . Haulers Intercepted . | . . . . Recyclers Shooed . | . . . . Parts Field Recycled . | . . . . Retrieved Matter . | . . . . Parts Self-Destructed . | . . . . Prevented . | . . . . Kills | -11 -10 -10 -9 ------- Run | Yrd Mat Min Mat Combat Hostiles Destroyed 2 | . 2 . . Guns 2 | . 2 . . Classes Destroyed 1 | . 1 . . Grunt 2 | . 2 . . Best Kill Streak 1 | . 1 . . Combat Bots Only 1 | . 1 . . Max Kills in Single Turn 1 | . 1 . . Gunslinging . | . . . . Exploded . | . . . . Melee . | . . . . Uniques/NPCs Destroyed . | . . . . Combat | -11 -10 -10 -9 -------- Run | Yrd Mat Min Mat Hostile Shots Fired 302 | . 37 113 152 Missed 100 | . 14 41 45 Damage Taken 2004 | . 335 565 1104 Core 630 | . 47 179 404 Absorbed by Shields . | . . . . Redirected to Shielding 46 | . 17 12 17 Core Remaining (%) 54 | 100 . 9 . Volleys Fired 11 | . 9 2 . Largest 2 | . 2 1 . Hottest 100 | . 60 100 . Shots Fired 12 | . 10 2 . Gun 11 | . 10 1 . Cannon . | . . . . Launcher . | . . . . Special 1 | . . 1 . Kinetic 10 | . 9 1 . Thermal 1 | . . 1 . Explosive . | . . . . Electromagnetic 1 | . 1 . . Robot Hit Streak 6 | . 6 . . Robot Miss Streak 3 | . 3 2 . Penetration Max . | . . . . Secondary Targets . | . . . . Shots Hit Robots 7 | . 7 . . Core Hits 6 | . 4 . 2 Critical Kills . | . . . . Critical Parts Destroyed . | . . . . Critical Strikes . | . . . . Melee Attacks . | . . . . Impact . | . . . . Slashing . | . . . . Piercing . | . . . . Sneak Attacks . | . . . . Combat Hostiles . | . . . . Follow-up Attacks . | . . . . Damage Inflicted 93 | . 88 . 5 Guns 85 | . 85 . . Cannons . | . . . . Explosions . | . . . . Melee . | . . . . Ramming 8 | . 3 . 5 Kinetic 73 | . 73 . . Thermal . | . . . . Explosive . | . . . . Electromagnetic 12 | . 12 . . Impact . | . . . . Slashing . | . . . . Piercing . | . . . . Highest Corruption . | . . . . Average Corruption . | . . . . Corruption Purged . | . . . . Corruption Blocked . | . . . . Overload Shots . | . . . . Overflow Damage . | . . . . Projectiles . | . . . . Explosions . | . . . . Melee . | . . . . Knockbacks . | . . . . Impact . | . . . . Kinetic . | . . . . Secondary . | . . . . Self-Inflicted Damage 1 | . 1 . . Shots . | . . . . Rammed 5 | 1 1 . 3 Targets Rammed 5 | 1 1 . 3 Kicked . | . . . . Crushed . | . . . . Highest Temperature 20 | . 17 20 . Average Temperature 11 | . 11 12 . Received Heat Transfer 351 | . 225 . 126 Siege Activations . | . . . . Robots Corrupted . | . . . . Combat Hostiles . | . . . . Parts Fried . | . . . . Impact Corruptions . | . . . . Robots Melted . | . . . . Combat Hostiles . | . . . . Parts Melted . | . . . . Heat Transferred . | . . . . Parts Sabotaged . | . . . . Parts Stolen . | . . . . Parts Stripped . | . . . . Power Chain Reactions . | . . . . Alert | -11 -10 -10 -9 ------- Run | Yrd Mat Min Mat Peak Influence 66 | . 65 15 66 Initial 1 | . . . 1 Average 22 | . 42 2 9 Maximum Alert Level . | . . . . Low Security (%) 100 | 100 100 100 100 Level 1 . | . . . . Level 2 . | . . . . Level 3 . | . . . . Level 4 . | . . . . Level 5 . | . . . . High Security . | . . . . Max Security . | . . . . Squads Dispatched . | . . . . Investigation . | . . . . Extermination . | . . . . Reinforcement . | . . . . Assault . | . . . . Garrison . | . . . . Intercept . | . . . . Searches Triggered . | . . . . Construction Impeded . | . . . . Haulers Reinforced . | . . . . Active Scanning Responses . | . . . . Cargo Convoy Interrupts . | . . . . Stealth | -11 -10 -10 -9 --------- Run | Yrd Mat Min Mat Distress Signals . | . . . . Communications Jammed . | . . . . Distress Signals . | . . . . Times Spotted 25 | . 7 6 12 Peak Tracking Total 7 | . 4 6 7 Tactical Retreats 2 | . . 1 1 Traps | -11 -10 -10 -9 ------- Run | Yrd Mat Min Mat Traps Triggered 1 | . . . 1 Indirectly . | . . . . Trap Hack Attempts . | . . . . Triggered . | . . . . Disarmed . | . . . . Reprogrammed . | . . . . Reused . | . . . . Traps Extracted . | . . . . Installed . | . . . . Triggered . | . . . . Machines | -11 -10 -10 -9 ---------- Run | Yrd Mat Min Mat Machines Disabled . | . . . . Max in Single Turn . | . . . . Machines Repaired . | . . . . Machines Dismantled . | . . . . Machines Sabotaged . | . . . . Overloaded Fab Kills . | . . . . Hacking | -11 -10 -10 -9 --------- Run | Yrd Mat Min Mat Machines Accessed . | . . . . Terminals . | . . . . Fabricators . | . . . . Repair Stations . | . . . . Recycling Units . | . . . . Scanalyzers . | . . . . Garrison Access . | . . . . Total Hacks . | . . . . Successful . | . . . . Failed . | . . . . Catastrophic . | . . . . Database Lockouts . | . . . . Manual . | . . . . Terminals . | . . . . Fabricators . | . . . . Repair Stations . | . . . . Recycling Units . | . . . . Scanalyzers . | . . . . Garrison Access . | . . . . Terminal Hacks . | . . . . Fabricator Hacks . | . . . . Repair Station Hacks . | . . . . Recycling Unit Hacks . | . . . . Scanalyzer . | . . . . Garrison Access Hacks . | . . . . Unauthorized Hacks . | . . . . Terminals . | . . . . Fabricators . | . . . . Repair Stations . | . . . . Recycling Units . | . . . . Scanalyzers . | . . . . Garrison Access . | . . . . Data Cores Recovered . | . . . . Used . | . . . . Hacking Detections . | . . . . Full Trace Events . | . . . . Feedback Events . | . . . . Feedback Blocked . | . . . . Robot Schematics Acquired . | . . . . Robots Built . | . . . . Authchips . | . . . . Time . | . . . . Total Robot Build Rating . | . . . . Part Schematics Acquired . | . . . . Parts Built . | . . . . Authchips . | . . . . Time . | . . . . Total Part Build Rating . | . . . . Parts Repaired . | . . . . Time . | . . . . Parts Recycled . | . . . . Recycled Matter . | . . . . Retrieved Matter . | . . . . Retrieved Components . | . . . . Parts Scanalyzed . | . . . . Part Schematics Acquired . | . . . . Parts Damaged . | . . . . Bothacking | -11 -10 -10 -9 ------------ Run | Yrd Mat Min Mat Used RIF Installer . | . . . . Robots Hacked . | . . . . Non-combat . | . . . . Combat . | . . . . Robot Hacks Applied . | . . . . Relay Couplers Released . | . . . . Fabnet Peak Effective % . | . . . . Robots Rewired . | . . . . Allies Hacked . | . . . . Hacks Repelled . | . . . . Allies | -11 -10 -10 -9 -------- Run | Yrd Mat Min Mat Total Allies . | . . . . Largest Group . | . . . . Highest-Rated Group . | . . . . Highest-Rated Ally . | . . . . Total Orders . | . . . . Ally Attacks . | . . . . Total Damage . | . . . . Kills . | . . . . Allies Corrupted . | . . . . Allies Melted . | . . . . Intel | -11 -10 -10 -9 ------- Run | Yrd Mat Min Mat Robot Analysis Total . | . . . . Derelict Logs Recovered . | . . . . Drone Launches . | . . . . Drone Recoveries . | . . . . Exploration | -11 -10 -10 -9 ------------- Run | Yrd Mat Min Mat Turns Passed 966 | 111 444 87 324 Spaces Moved 496 | 90 267 29 110 Core 31 | 27 . . 4 Treads 27 | . . . 27 Legs 199 | . 91 29 79 Wheels 239 | 63 176 . . Hover . | . . . . Flight . | . . . . Fastest Speed 50 | 50 80 260 240 Average Speed 178 | 102 154 264 275 Slowest Speed 700 | 200 400 400 700 Overloaded Moves . | . . . . Propulsion Burnouts . | . . . . Robots Hopped . | . . . . Cave-ins Triggered . | . . . . Exploration Rate (%) 21 | 5 48 21 13 Regions Visited 3 Branch Regions 1 Pre-discovered Areas . | . . . . Known Exits Taken . | . . . . Unknown Exits Taken 3 | 1 1 1 . Scrap Searched . | . . . . Spaces Dug . | . . . . Terrain Destroyed 1 | . . 1 . Melee . | . . . . Projectile 1 | . . 1 . AOE . | . . . . Terrain Rammed . | . . . . Walls Destroyed . | . . . . Machines Disabled . | . . . . Actions | -11 -10 -10 -9 --------- Run | Yrd Mat Min Mat Total 560 | 108 288 35 129 Wait . | . . . . Move 493 | 89 266 28 110 Hop . | . . . . Pick Up 26 | 12 6 . 8 Fast Attach 2 | . 2 . . Attach 16 | 6 3 2 5 Detach . | . . . . Swap 3 | . . 3 . Drop 4 | . 1 . 3 Fire 11 | . 9 2 . Melee . | . . . . Ram 2 | 1 1 . . Kick . | . . . . Crush 3 | . . . 3 Escape Stasis . | . . . . Rewire . | . . . . Trap . | . . . . Miscellaneous . | . . . . Route ------- -11/Scrapyard -10/Materials -10/Mines -9/Materials History --------- Turn | Location | Event 11 | -11/Scrapyard | Discovered new exit (range 15) 112 | -11/Scrapyard | Entered Materials 312 | -10/Materials | Build established: Mutant 459 | -10/Materials | Discovered new exit (range 11) 556 | -10/Materials | Entered Mines 595 | -10/Mines | Core integrity fell below 50% 619 | -10/Mines | Met a Derelict bent on vengeance 622 | -10/Mines | Core integrity fell below 20% 630 | -10/Mines | Discovered new exit (range 3) 633 | -10/Mines | Lost 4 parts (1n3w) 643 | -10/Mines | Entered Materials 643 | -9/Materials | Evolved 2 slots: Power x1, Propulsion x1 949 | -9/Materials | Core integrity fell below 50% 963 | -9/Materials | Core integrity fell below 20% 967 | -9/Materials | Destroyed by S-10 Pest with Light Assault Rifle Last Messages --------------- 00849_ U-05 Engineer builds a Wall. 00850_ The unstable cave ceiling collapses. 00853_ U-05 Engineer lays Concrete. 00862_ Aluminum Leg destroyed. 00863_ U-05 Engineer lays Concrete. 00881_ Electrolysis Chamber disabled. 00883_ Slammed into S-10 Pest. 00884_ Mining Laser destroyed. 00891_ Ion Engine destroyed. 00891_ S-10 Pest destroyed. 00898_ Ion Engine destroyed. 00900_ Mining Laser destroyed. 00916_ Slammed into S-10 Pest. 00918_ Lgt. Treads destroyed. 00919_ Slammed into S-10 Pest. 00929_ Aluminum Leg destroyed. 00941_ Lgt. Treads destroyed. 00949_ S-10 Pest destroyed. 00953_ Integration Channel disabled. 00963_ T-07 Excavator is excavating. Map ----- +----------------------------------------------------+ | # """ """ #???????????? | | # """ """ #???????????? | | # #???????????? | | ### ########################???????????? | | ########## ##??????????????????????????????????? | | # #???????????????????????????????????? | | ??"" """ #* #???????????????????????????????????? | | ??"" """ +%= /???????????????????????????????????? | | ??"" " " #[ #???????????????????????????????????? | | # #???????????????????????????????????? | | # #???????????????????????????????????? | | # #???????????????????????????????????? | | # ########????????????????????????????? | | ####### ## # "T" #????????????????????????????? | | ??????##?# + #???#????????????????????????? | | ?????????# # !#??!#????????????????????????? | | ?????????# # #? !#????????????????????????? | | ?????????# #####/## !#????????????????????????? | | ?????????# #??## ## !#????????????????????????? | | ?????????# #??# !#?????????????????????????? | | ?????????# #??# ####?????????????????????????? | | ??????#### #### #????????????????????????????? | | ???? #???????????t###?????????????? | | ???? ########## #?????????????? | | ???? u ts #?????????????? | | ?????############ % s @ ^+ ???????????? | | ????????????????# Y""" s T #?????????????? | | ????????????????# s""""""""" #?????????????? | | ????????????????# Y""" """ u ###?????????????? | | ????????????????# Y #???????????????? | | ????????????????+ [ #???????????????? | | ????????????????# t +???????????????? | | ????????????????# ##+####+#???????????????? | | ????????????????# #### #???????????????????????? | | ????????????????# ??? ???????????????????????? | | ????????????????# ??? a ????????????????????????? | | ????????????????# ?????? ????????????????????????? | | ???????????????? ????????????????????????????????? | | ?????????????????????????????????????????????????? | | ?????????????????????????????????????????????????? | | ?????????????????????????????????????????????????? | | ?????????????????????????????????????????????????? | | ?????????????????????????????????????????????????? | | ?????????????????????????????????????????????????? | | ?????????????????????????????????????????????????? | | ?????????????????????????????????????????????????? | | ?????????????????????????????????????????????????? | | ?????????????????????????????????????????????????? | | ?????????????????????????????????????????????????? | | ?????????????????????????????????????????????????? | +----------------------------------------------------+ Best States ------------- Heat Dissipation 28 Energy Generation 15 Energy Capacity 400 Matter Stores 284 Matter Capacity 300 Sight Range 16 Terrain Scan Density 10 Power Shielding 33 Evasion (%) 44 Recoil Reduction 2 Item Schematics ----------------- None Robot Schematics ------------------ None Fabricated ------------ Nothing Alien Tech Used ----------------- None Achievements -------------- Close Call Challenges ------------ None Game ------ Seed WeaponsIntegritySabre Manual? 0 Play Time 00:15:34 Cumulative 2.3 hours Start 2024.03.15 @ 19:27:05 End 2024.03.15 @ 19:41:17 Sessions 1 Manual Loads 0 Difficulty Rogue Special Mode None Game No. 8 Rogue 8 Adventurer 0 Explorer 0 Win Type - Total 0 Types 0/0/0/0/0/0/0/0/0 Lore% 4 Gallery% 6 Achievement% 7 Wizard Run 0 Options --------- Layout 1 ASCII 0 Keyboard 0 Movement Vi Keybinds 0 Fullscreen 1 Font 24/Smallcaps Map View 50x35 Zoom Use 0% Tactical HUD 1 Map Filters NONE Filters NONE Steam 1 RUN: 96727749-5288-44a2-95f0-e295ea0ec64c